bitfinex/quotes_SOLUSD_20250617
["timestamp","ask_amount","ask_price","bid_price","bid_amount"]
[1750128789782,4.71605757,152.26,152.22,9.00087462]
[1750128790685,4.71605757,152.26,152.21,6.56987057]
[1750128790859,4.71605757,152.26,152.22,9.00087462]
[1750128791180,4.71605757,152.26,152.23,6.56900742]
[1750128791355,4.71605757,152.26,152.23,15.56988204]
[1750128791558,9.00087462,152.25,152.2,6.57030223]
[1750128791872,9.00087462,152.25,152.21,9.00087462]
[1750128792072,4.71605757,152.26,152.23,9.00087462]
[1750128792891,4.71605757,152.26,152.2,22.99605781]
[1750128793101,4.71605757,152.26,152.24,6.56857593]
[1750128793797,4.71605757,152.26,152.25,9.00087462]
[1750128794407,4.71605757,152.26,152.25,35.00087462]
[1750128795097,4.71605757,152.26,152.25,41.56901911]
[1750128795894,4.71605757,152.26,152.25,32.56814449]
[1750128796090,4.71605757,152.26,152.25,41.71118068]
[1750128796396,4.71605757,152.26,152.25,15.71118068]
[1750128797003,4.71605757,152.26,152.25,41.71118068]
[1750128797184,4.71605757,152.26,152.25,6.71030606]
[1750128797387,4.71605757,152.26,152.25,15.71118068]
[1750128798289,4.71605757,152.26,152.25,41.56901911]
[1750128798481,4.71605757,152.26,152.25,32.56814449]
[1750128798686,4.71605757,152.26,152.25,41.56901911]
[1750128799195,4.71605757,152.26,152.25,32.56814449]
[1750128799402,4.71605757,152.26,152.25,41.56901911]
[1750128799982,4.71605757,152.26,152.25,15.71118068]
[1750128802893,4.71605757,152.26,152.25,6.71030606]
[1750128803096,4.71605757,152.26,152.25,15.71118068]
[1750128803415,4.71605757,152.26,152.25,34.36082954]
[1750128803780,4.71605757,152.26,152.25,34.64515268]
[1750128804017,4.71605757,152.26,152.25,34.36082954]
[1750128806279,4.71605757,152.26,152.25,34.64515268]
[1750128806610,10.8011427,152.36,152.28,26.0]
[1750128806800,19.80201732,152.36,152.28,35.00087462]
[1750128806975,10.8011427,152.36,152.33,9.00087462]
[1750128807173,1.3816427,152.36,152.35,15.56470789]
[1750128807699,1.3816427,152.36,152.35,6.56383327]
[1750128807883,1.3816427,152.36,152.31,42.41307783]
[1750128808090,1.3816427,152.36,152.34,9.00087462]
[1750128808292,1.3816427,152.36,152.35,9.00087462]
[1750128809099,1.3816427,152.36,152.35,35.00087462]
[1750128809324,1.3816427,152.36,152.35,41.56470789]
[1750128810314,1.3816427,152.36,152.35,60.35651832]
[1750128810905,1.3816427,152.36,152.35,44.85853231]
[1750128811588,1.3816427,152.36,152.35,45.00069388]
[1750128811789,0.18,152.42,152.35,96.16429008]
[1750128812002,0.18,152.42,152.41,9.00087462]
[1750128813314,0.18,152.42,152.41,15.56212388]
[1750128814609,0.18,152.42,152.41,34.63825745]
[1750128814988,8.2323,152.51,152.44,26.0]
[1750128815188,65.00223032,152.53,152.48,15.55894073]
[1750128815403,9.00087462,152.52,152.48,15.55894073]
[1750128815620,9.00087462,152.52,152.47,15.55945325]
[1750128815922,9.00087462,152.48,152.44,9.00087462]
[1750128816299,9.00087462,152.49,152.44,9.00087462]
[1750128816521,9.00087462,152.48,152.44,9.00087462]
[1750128816927,9.00087462,152.48,152.45,6.55952771]
[1750128817603,6.55742178,152.5,152.44,15.56070441]
[1750128817803,9.00087462,152.47,152.43,9.00087462]
[1750128818012,6.55742178,152.5,152.43,9.00087462]
[1750128818532,9.00087462,152.48,152.43,9.00087462]
[1750128818737,9.00087462,152.47,152.42,32.56081879]
[1750128818916,9.00087462,152.47,152.39,18.79181043]
[1750128818917,9.00087462,152.44,152.39,9.00087462]
[1750128819228,6.031,152.49,152.39,9.00087462]
[1750128819229,9.00087462,152.43,152.39,9.00087462]
[1750128819437,6.55940425,152.46,152.38,6.56254101]
[1750128819438,9.00087462,152.42,152.38,6.56254101]
[1750128819610,16.80087462,152.46,152.38,15.56341563]
[1750128819802,9.00087462,152.42,152.38,15.56341563]
[1750128820003,7.8,152.46,152.38,15.56341563]
[1750128820421,9.00087462,152.42,152.38,15.56341563]
[1750128820824,9.00087462,152.42,152.38,6.56254101]
[1750128821124,9.00087462,152.42,152.38,15.56341563]
[1750128821331,9.00087462,152.46,152.41,35.00087462]
[1750128821507,9.00087462,152.46,152.42,9.00087462]
[1750128821845,1.6084,152.47,152.42,9.00087462]
[1750128822125,6.031,152.49,152.41,26.0]
[1750128822426,6.031,152.49,152.43,9.00087462]
[1750128822427,9.00087462,152.47,152.43,9.00087462]
[1750128822729,9.00087462,152.48,152.44,6.55995801]
[1750128822903,6.031,152.49,152.44,6.55995801]
[1750128823107,9.00087462,152.48,152.44,6.55995801]
[1750128823309,15.03187462,152.49,152.45,9.00087462]
[1750128823541,7.8,152.5,152.45,9.00087462]
[1750128823835,7.8,152.5,152.44,32.55995801]
[1750128824036,16.80087462,152.5,152.46,9.00087462]
[1750128824237,7.8,152.5,152.47,9.00087462]
[1750128824718,7.8,152.5,152.48,6.55823714]
[1750128826337,19.30743032,152.53,152.48,6.55823714]
[1750128826338,13.00223032,152.53,152.49,9.00087462]
[1750128826534,13.00223032,152.53,152.48,6.55823714]
[1750128826535,13.00223032,152.53,152.5,9.00087462]
[1750128827041,13.00223032,152.53,152.52,9.00087462]
[1750128827911,13.00223032,152.53,152.52,15.55739179]
[1750128828135,13.00223032,152.53,152.52,34.63352536]
[1750128828617,10.61367462,152.63,152.55,26.0]
[1750128828940,10.61367462,152.63,152.59,9.00087462]
[1750128829115,16.62087462,152.64,152.59,9.00087462]
[1750128829314,16.62087462,152.64,152.6,9.00087462]
[1750128829609,7.62,152.64,152.6,9.00087462]
[1750128830039,1.3816427,152.67,152.63,9.00087462]
[1750128830330,1.3816427,152.67,152.66,9.00087462]
[1750128830534,1.3816427,152.67,152.62,26.0]
[1750128830739,1.3816427,152.67,152.65,9.00087462]
[1750128830941,1.3816427,152.67,152.66,9.00087462]
[1750128831114,1.3816427,152.67,152.64,26.0]
[1750128831315,1.3816427,152.67,152.66,9.14303619]
[1750128831537,1.3816427,152.67,152.66,9.42735933]
[1750128831926,0.3767724,152.73,152.69,41.57190964]
[1750128832128,0.3767724,152.73,152.72,35.14303619]
[1750128832319,0.3767724,152.73,152.72,62.79355967]
[1750128832641,0.3767724,152.73,152.72,45.07613357]
[1750128832827,0.3767724,152.73,152.72,54.07700819]
[1750128833019,0.3767724,152.73,152.72,44.79181043]
[1750128833336,0.3767724,152.73,152.72,26.0]
[1750128833515,0.3767724,152.73,152.7,0.14216157]
[1750128833717,0.3767724,152.73,152.7,9.00087462]
[1750128833949,9.37764702,152.73,152.69,15.55009198]
[1750128834242,0.3767724,152.73,152.69,6.54921736]
[1750128834423,0.3767724,152.73,152.69,15.55009198]
[1750128834826,0.3767724,152.73,152.68,32.54940232]
[1750128835015,0.3767724,152.73,152.63,24.70168341]
[1750128835016,9.00087462,152.7,152.63,16.37898341]
[1750128835219,9.00087462,152.72,152.68,9.00087462]
[1750128835444,0.3767724,152.73,152.69,9.00087462]
[1750128835747,0.3767724,152.73,152.7,9.00087462]
[1750128835964,0.3767724,152.73,152.71,9.00087462]
[1750128836242,0.3767724,152.73,152.71,15.54909277]
[1750128836430,0.3767724,152.73,152.71,6.54821815]
[1750128836631,0.3767724,152.73,152.71,15.54909277]
[1750128837742,0.3767724,152.73,152.69,15.54974201]
[1750128837930,0.3767724,152.73,152.7,15.54927673]
[1750128838325,0.3767724,152.73,152.7,6.54840211]
[1750128838544,9.00087462,152.71,152.66,9.00087462]
[1750128838716,9.00087462,152.71,152.63,16.37899773]
[1750128838717,9.00087462,152.7,152.65,9.00087462]
[1750128838917,6.9244802,152.73,152.66,9.00087462]
[1750128839128,9.00087462,152.7,152.66,9.00087462]
[1750128839525,0.3767724,152.73,152.72,26.0]
[1750128839727,0.3767724,152.73,152.72,63.07788281]
[1750128840248,0.3767724,152.73,152.72,32.69009242]
[1750128840451,0.3767724,152.73,152.72,41.54880547]
[1750128840631,0.3767724,152.73,152.72,32.54793085]
[1750128840832,0.3767724,152.73,152.72,15.54880547]
[1750128841347,0.3767724,152.73,152.72,41.54880547]
[1750128842123,0.3767724,152.73,152.72,41.69096704]
[1750128842325,4.62173642,152.78,152.75,26.0]
[1750128842555,4.62173642,152.78,152.77,9.00087462]
[1750128843653,4.62173642,152.78,152.75,26.14216157]
[1750128843850,4.62173642,152.78,152.76,9.00087462]
[1750128844153,1.6569,152.9,152.81,22.90426019]
[1750128844343,6.6072,152.91,152.86,9.00087462]
[1750128844652,6.6072,152.91,152.84,26.0]
[1750128844653,9.00087462,152.89,152.84,9.00087462]
[1750128844837,9.00087462,152.9,152.85,9.00087462]
[1750128845148,6.6072,152.91,152.85,9.00087462]
[1750128845353,9.00087462,152.89,152.84,9.00087462]
[1750128845649,6.6072,152.91,152.84,9.00087462]
[1750128845947,6.6072,152.91,152.86,9.00087462]
[1750128845948,9.00087462,152.9,152.86,9.00087462]
[1750128846148,9.00087462,152.9,152.87,6.54150585]
[1750128846462,9.00087462,152.89,152.84,9.00087462]
[1750128846623,6.6072,152.91,152.84,9.00087462]
[1750128846828,9.00087462,152.87,152.83,15.54409257]
[1750128847150,9.00087462,152.88,152.83,6.54321795]
[1750128847466,6.6072,152.91,152.83,6.54321795]
[1750128847467,9.00087462,152.87,152.83,6.54321795]
[1750128847622,9.00087462,152.87,152.83,15.54409257]
[1750128848042,6.6072,152.91,152.83,15.54409257]
[1750128848252,9.00087462,152.89,152.83,22.90126283]
[1750128848565,9.00087462,152.87,152.83,6.54321795]
[1750128848737,9.00087462,152.86,152.83,6.54321795]
[1750128849055,10.0,152.89,152.79,6.54493095]
[1750128849224,7.6,152.86,152.79,6.54493095]
[1750128849426,9.00087462,152.82,152.79,6.54493095]
[1750128850160,7.6,152.86,152.79,6.54493095]
[1750128850331,9.00087462,152.83,152.76,16.36503642]
[1750128851464,9.00087462,152.83,152.76,22.9112527]
[1750128852231,9.00087462,152.83,152.79,9.00087462]
[1750128852435,9.00087462,152.83,152.78,9.00087462]
[1750128852957,9.00087462,152.84,152.76,22.9112527]
[1750128853169,9.00087462,152.84,152.79,9.00087462]
[1750128853865,7.6,152.86,152.76,22.9112527]
[1750128854078,16.60087462,152.86,152.81,9.00087462]
[1750128854285,6.6072,152.91,152.85,9.00087462]
[1750128854576,6.6072,152.91,152.86,9.00087462]
[1750128854577,9.00087462,152.9,152.86,9.00087462]
[1750128854867,9.00087462,152.9,152.85,9.00087462]
[1750128855087,6.6072,152.91,152.81,26.0]
[1750128855268,6.6072,152.91,152.87,9.00087462]
[1750128855567,15.60807462,152.91,152.83,22.90126283]
[1750128855875,15.60807462,152.91,152.86,9.00087462]
[1750128856362,9.00087462,152.9,152.86,9.00087462]
[1750128856562,6.6072,152.91,152.86,9.00087462]
[1750128856736,53.56596584,152.97,152.9,35.00087462]
[1750128856737,1.3816427,152.97,152.9,35.00087462]
[1750128856942,1.3816427,152.97,152.9,26.0]
[1750128857287,1.3816427,152.97,152.94,26.0]
[1750128857443,1.3816427,152.97,152.96,9.00087462]
[1750128857636,1.3816427,152.97,152.95,6.53808434]
[1750128857875,1.3816427,152.97,152.96,9.00087462]
[1750128858076,1.3816427,152.97,152.96,12.29146932]
[1750128858445,1.3816427,152.97,152.96,3.2905947]
[1750128858639,1.3816427,152.97,152.96,9.00087462]
[1750128858954,1.3816427,152.97,152.95,6.53808434]
[1750128859156,1.3816427,152.97,152.96,13.74870547]
[1750128859455,1.3816427,152.97,152.93,3.29190244]
[1750128859644,1.3816427,152.97,152.83,75.43217954]
[1750128859645,13.74870547,152.96,152.92,13.74870547]
[1750128859846,13.74870547,152.93,152.87,13.74870547]
[1750128860070,13.74870547,152.91,152.85,6.54236179]
[1750128860381,13.74870547,152.91,152.86,13.74870547]
[1750128860667,24.26200789,152.97,152.85,6.54236179]
[1750128860668,13.74870547,152.9,152.85,6.54236179]
[1750128860878,13.74870547,152.89,152.85,20.29106726]
[1750128861181,13.74870547,152.88,152.84,20.291444]
[1750128861475,13.74870547,152.89,152.84,20.291444]
[1750128861679,13.74870547,152.89,152.84,13.74870547]
[1750128861842,13.74870547,152.88,152.81,6.54407434]
[1750128862039,13.74870547,152.88,152.84,13.74870547]
[1750128862240,7.66,152.92,152.81,48.90426019]
[1750128862448,13.74870547,152.91,152.86,13.74870547]
[1750128862875,13.74870547,152.9,152.86,13.74870547]
[1750128863047,13.74870547,152.9,152.85,17.00996181]
[1750128863247,13.74870547,152.89,152.85,13.74870547]
[1750128863461,14.19950232,152.92,152.85,13.74870547]
[1750128863773,13.74870547,152.9,152.86,6.54193379]
[1750128863967,13.74870547,152.89,152.84,20.29108981]
[1750128864174,13.74870547,152.88,152.84,20.29108981]
[1750128864348,13.74870547,152.88,152.84,6.54238434]
[1750128864548,13.74870547,152.87,152.84,6.54238434]
[1750128864744,13.74870547,152.87,152.83,6.54311825]
[1750128865072,6.53983217,152.91,152.83,9.77132297]
[1750128865073,13.74870547,152.88,152.83,9.77132297]
[1750128867950,7.66,152.92,152.89,6.54065014]
[1750128868452,7.66,152.92,152.9,13.74870547]
[1750128868656,13.74870547,152.95,152.9,13.74870547]
[1750128869186,1.3816427,152.97,152.91,13.74870547]
[1750128869388,13.74870547,152.96,152.92,13.74870547]
[1750128869877,13.74870547,152.94,152.9,13.74870547]
[1750128870172,13.74870547,152.96,152.91,13.74870547]
[1750128870557,1.3816427,152.97,152.93,13.74870547]
[1750128870978,1.3816427,152.97,152.9,26.0]
[1750128871177,1.3816427,152.97,152.89,1.6071]
[1750128871475,15.13034817,152.97,152.89,1.6071]
[1750128871657,15.13034817,152.97,152.92,13.74870547]
[1750128871972,15.13034817,152.97,152.93,6.53893938]
[1750128872151,1.3816427,152.97,152.93,6.53893938]
[1750128872353,1.3816427,152.97,152.93,20.28764485]
[1750128872654,15.13034817,152.97,152.92,13.74870547]
[1750128872974,13.74870547,152.96,152.92,13.74870547]
[1750128873173,1.3816427,152.97,152.9,6.54022236]
[1750128873349,1.3816427,152.97,152.91,13.74870547]
[1750128873546,15.13034817,152.97,152.92,13.74870547]
[1750128873771,13.74870547,152.96,152.92,20.28770024]
[1750128874278,13.74870547,152.96,152.92,6.53899477]
[1750128874464,13.74870547,152.96,152.92,20.28770024]
[1750128874772,15.13034817,152.97,152.92,20.28770024]
[1750128874958,1.3816427,152.97,152.93,13.74870547]
[1750128875164,1.3816427,152.97,152.95,13.74870547]
[1750128875687,1.3816427,152.97,152.96,13.74870547]
[1750128876186,1.3816427,152.97,152.92,22.88741224]
[1750128876390,1.3816427,152.97,152.96,13.74870547]
[1750128876597,1.3816427,152.97,152.92,22.88741224]
[1750128876772,1.3816427,152.97,152.94,13.74870547]
[1750128877087,1.3816427,152.97,152.95,13.74870547]
[1750128877495,1.3816427,152.97,152.96,13.74870547]
[1750128878086,1.3816427,152.97,152.94,20.28680215]
[1750128878290,1.3816427,152.97,152.95,13.74870547]
[1750128878508,1.3816427,152.97,152.92,6.53936698]
[1750128878669,1.3816427,152.97,152.93,13.74870547]
[1750128878863,1.3816427,152.97,152.92,6.53936698]
[1750128879180,1.3816427,152.97,152.86,32.7084804]
[1750128879181,1.3816427,152.97,152.94,6.53851183]
[1750128879577,1.3816427,152.97,152.94,15.42709916]
[1750128879974,10.27023003,152.97,152.93,15.42739931]
[1750128880169,10.27023003,152.97,152.93,6.53881198]
[1750128880576,8.88858733,152.96,152.9,26.0]
[1750128880794,8.88858733,152.96,152.89,48.89227549]
[1750128880965,1.3816427,152.97,152.92,15.42795431]
[1750128881172,1.3816427,152.97,152.94,8.88858733]
[1750128882294,1.3816427,152.97,152.93,8.88858733]
[1750128882603,1.3816427,152.97,152.92,6.53936698]
[1750128882604,8.88858733,152.96,152.92,6.53936698]
[1750128882792,1.3816427,152.97,152.89,26.0]
[1750128882793,1.3816427,152.97,152.9,8.88858733]
[1750128883104,7.91895095,152.97,152.9,15.42844669]
[1750128883288,7.91895095,152.97,152.9,6.53985936]
[1750128883608,7.91895095,152.97,152.9,15.42844669]
[1750128883780,8.88858733,152.93,152.89,6.54053069]
[1750128883975,7.91895095,152.97,152.88,15.42957671]
[1750128884289,6.20173421,152.97,152.92,8.88858733]
[1750128884471,1.3816427,152.97,152.93,8.88858733]
[1750128885086,10.27023003,152.97,152.93,8.88858733]
[1750128885297,10.27023003,152.97,152.93,15.42733517]
[1750128885516,8.88858733,152.95,152.91,8.88858733]
[1750128885723,8.88858733,152.94,152.89,15.42923747]
[1750128885926,8.88858733,152.93,152.89,6.54065014]
[1750128886223,8.88858733,152.9,152.86,6.54193379]
[1750128886372,4.84605762,152.94,152.88,8.88858733]
[1750128886579,6.0457,152.95,152.91,8.88858733]
[1750128886781,8.88858733,152.95,152.91,8.88858733]
[1750128887086,8.88858733,152.95,152.86,22.89676827]
[1750128887283,8.88858733,152.93,152.89,8.88858733]
[1750128887480,8.88858733,152.93,152.88,8.88858733]
[1750128887705,4.84605762,152.96,152.88,8.88858733]
[1750128887879,8.88858733,152.92,152.87,15.43009318]
[1750128888693,30.185931,152.97,152.87,15.43009318]
[1750128888694,8.88858733,152.91,152.87,15.43009318]
[1750128888880,8.88858733,152.92,152.87,15.43009318]
[1750128889508,8.88858733,152.92,152.88,8.88858733]
[1750128889681,8.88858733,152.92,152.87,15.43009318]
[1750128889880,8.88858733,152.91,152.87,15.43009318]
[1750128890189,8.88858733,152.92,152.88,15.42933142]
[1750128890502,17.7247165,152.97,152.88,15.42933142]
[1750128890503,6.53817209,152.95,152.88,15.42933142]
[1750128890700,6.53817209,152.95,152.88,6.54074409]
[1750128891002,8.88858733,152.92,152.88,15.42933142]
[1750128892503,6.5376569,152.96,152.88,15.42933142]
[1750128892714,8.88858733,152.92,152.88,6.54074409]
[1750128893620,8.88858733,152.92,152.88,15.42933142]
[1750128893909,30.38,152.93,152.89,15.42895295]
[1750128894084,39.26858733,152.93,152.89,15.42895295]
[1750128894415,39.26858733,152.93,152.89,6.54036562]
[1750128895003,39.26858733,152.93,152.87,8.88858733]
[1750128895004,8.88858733,152.92,152.87,8.88858733]
[1750128895185,8.88858733,152.91,152.86,15.43052112]
[1750128895619,8.88858733,152.91,152.86,6.54193379]
[1750128895914,8.88858733,152.92,152.88,6.54107796]
[1750128897309,39.26858733,152.93,152.88,6.54107796]
[1750128897611,8.88858733,152.92,152.88,6.54107796]
[1750128898185,36.91894545,152.93,152.85,26.0]
[1750128898186,8.88858733,152.91,152.86,15.43052112]
[1750128898707,16.90858733,152.91,152.86,15.43052112]
[1750128898909,8.02,152.91,152.86,15.43052112]
[1750128899214,16.90858733,152.91,152.86,15.43052112]
[1750128900392,8.02,152.91,152.86,6.54193379]
[1750128900790,3.41004903,152.96,152.87,8.88858733]
[1750128901096,16.90858733,152.95,152.9,8.88858733]
[1750128901295,8.02,152.95,152.91,8.88858733]
[1750128902118,8.02,152.95,152.93,8.88858733]
[1750128902624,1.3816427,152.97,152.9,22.89077827]
[1750128902800,0.3816427,152.97,152.9,22.89077827]
[1750128903128,9.27023003,152.97,152.9,22.89077827]
[1750128903306,9.27023003,152.97,152.93,8.88858733]
[1750128903307,0.3816427,152.97,152.93,8.88858733]
[1750128903620,0.3816427,152.97,152.9,22.89077827]
[1750128903924,0.3816427,152.97,152.94,26.0]
[1750128904094,0.3816427,152.97,152.95,6.53808434]
[1750128904737,0.3816427,152.97,152.95,15.42667167]
[1750128905028,0.3816427,152.97,152.96,8.88858733]
[1750128905201,0.3816427,152.97,152.95,6.53808434]
[1750128905202,0.3816427,152.97,152.95,15.42667167]
[1750128906212,0.3816427,152.97,152.95,6.53808434]
[1750128906901,0.3816427,152.97,152.95,15.42667167]
[1750128907500,0.3816427,152.97,152.95,6.53808434]
[1750128907702,0.3816427,152.97,152.95,15.42667167]
[1750128907909,0.3816427,152.97,152.95,6.53808434]
[1750128908719,4.57457584,153.03,152.99,26.0]
[1750128908944,4.57457584,153.03,153.0,26.0]
[1750128909232,4.57457584,153.03,153.02,8.88858733]
[1750128909593,7.7217,153.12,153.05,26.0]
[1750128909792,4.86770584,153.17,153.07,1.654]
[1750128910009,3.40449132,153.16,153.13,8.88858733]
[1750128910213,3.40449132,153.16,153.14,8.88858733]
[1750128910419,3.40449132,153.16,153.15,8.88858733]
[1750128910811,8.88858733,153.23,153.15,8.88858733]
[1750128911003,6.3167,153.26,153.19,8.88858733]
[1750128911327,6.3167,153.26,153.15,29.31033413]
[1750128911622,8.88858733,153.21,153.15,3.31033413]
[1750128911801,8.88858733,153.19,153.14,8.88858733]
[1750128912115,73.1657113,153.24,153.08,51.32434243]
[1750128912321,8.88858733,153.16,153.08,32.532532]
[1750128912515,0.14216157,153.21,153.11,8.88858733]
[1750128912818,0.28432314,153.22,153.12,26.0]
[1750128913021,30.64,153.24,153.16,8.88858733]
[1750128913192,6.3167,153.26,153.16,26.0]
[1750128913392,16.50536988,153.33,153.16,26.0]
[1750128913393,6.2373,153.32,153.17,1.6471]
[1750128913618,0.20062965,153.33,153.2,26.0]
[1750128913819,0.20062965,153.33,153.22,26.0]
[1750128914034,0.20062965,153.33,153.28,8.248]
[1750128914212,0.20062965,153.33,153.32,15.41089361]
[1750128914817,6.2373,153.45,153.35,26.0]
[1750128915024,16.28675683,153.5,153.35,26.0]
[1750128915025,6.5142336,153.51,153.42,8.88858733]
[1750128915192,6.5142336,153.51,153.36,8.88858733]
[1750128915193,6.5142336,153.51,153.39,26.0]
[1750128915401,149.1,153.52,153.39,26.0]
[1750128915595,65.68025469,153.53,153.36,34.88858733]
[1750128915902,65.68025469,153.53,153.4,8.88858733]
[1750128916220,69.07757331,153.53,153.39,26.0]
[1750128916426,69.07757331,153.53,153.43,8.88858733]
[1750128916727,8.88858733,153.5,153.39,26.0]
[1750128916940,69.07757331,153.53,153.39,26.0]
[1750128917126,69.07757331,153.53,153.43,13.66374524]
[1750128917298,18.64964886,153.52,153.43,13.66374524]
[1750128917498,69.07757331,153.53,153.39,26.0]
[1750128917818,115.13394768,153.53,153.39,29.31375881]
[1750128918024,134.62025469,153.53,153.39,29.31375881]
[1750128918193,13.66374524,153.45,153.43,6.51763018]
[1750128918398,18.64964886,153.51,153.4,6.51890482]
[1750128918711,13.66374524,153.41,153.4,6.51890482]
[1750128918913,13.66374524,153.41,153.35,13.66374524]
[1750128919215,33.3,153.47,153.33,16.30466026]
[1750128919414,13.66374524,153.39,153.34,13.66374524]
[1750128919593,33.3,153.47,153.33,22.82654117]
[1750128919594,0.14216157,153.46,153.33,22.82654117]
[1750128919798,13.66374524,153.39,153.34,13.66374524]
[1750128920227,18.64964886,153.46,153.35,22.82360612]
[1750128920415,13.66374524,153.39,153.35,6.52103032]
[1750128920726,13.66374524,153.36,153.33,6.52146133]
[1750128921103,6.1617,153.43,153.33,6.52146133]
[1750128921305,13.66374524,153.36,153.33,6.52146133]
[1750128921516,6.1617,153.43,153.29,6.52358275]
[1750128921517,13.66374524,153.34,153.29,6.52358275]
[1750128921715,18.64964886,153.39,153.29,6.52358275]
[1750128921933,18.64964886,153.39,153.26,6.52485971]
[1750128921934,13.66374524,153.3,153.26,6.52485971]
[1750128922209,13.66374524,153.28,153.19,6.52784124]
[1750128922409,13.66374524,153.3,153.26,13.66374524]
[1750128922626,6.52024941,153.37,153.28,13.66374524]
[1750128922808,13.66374524,153.34,153.23,13.66374524]
[1750128923134,13.66374524,153.3,153.23,3.19978374]
[1750128923317,13.66374524,153.29,153.19,88.12585676]
[1750128923631,13.66374524,153.34,153.24,13.66374524]
[1750128923830,18.64964886,153.38,153.22,26.0]
[1750128924007,13.66374524,153.32,153.27,13.66374524]
[1750128924210,13.66374524,153.31,153.27,20.18817924]
[1750128924405,9.84,153.38,153.3,13.66374524]
[1750128924605,9.84,153.38,153.27,22.83551901]
[1750128924828,13.66374524,153.32,153.27,6.524434]
[1750128925044,16.35998932,153.38,153.27,20.18817924]
[1750128925341,9.84,153.38,153.27,6.524434]
[1750128925543,16.3598562,153.38,153.27,6.524434]
[1750128925831,13.66374524,153.31,153.27,6.524434]
[1750128926133,13.66374524,153.31,153.27,20.18817924]
[1750128926317,16.3598562,153.38,153.27,6.524434]
[1750128926643,13.66374524,153.32,153.27,20.18817924]
[1750128926847,6.52088929,153.36,153.27,6.524434]
[1750128927141,13.66374524,153.32,153.27,20.18817924]
[1750128927519,13.66374524,153.32,153.27,6.524434]
[1750128927824,25.16982881,153.37,153.28,13.66374524]
[1750128928016,13.66374524,153.32,153.28,13.66374524]
[1750128928316,6.52017995,153.37,153.29,13.66374524]
[1750128928503,13.66374524,153.34,153.29,13.66374524]
[1750128928704,6.52017995,153.37,153.28,13.66374524]
[1750128928903,16.29314704,153.44,153.33,13.66374524]
[1750128929132,16.29314704,153.44,153.3,26.0]
[1750128929133,18.64964886,153.43,153.3,26.0]
[1750128929430,13.66374524,153.35,153.3,26.0]
[1750128929634,13.66374524,153.35,153.3,39.66374524]
[1750128929817,13.66374524,153.35,153.32,6.52230628]
[1750128930017,6.51939039,153.39,153.32,6.52230628]
[1750128930225,13.66374524,153.36,153.32,6.52230628]
[1750128930425,13.66374524,153.35,153.31,6.52267816]
[1750128930733,16.75939039,153.39,153.25,13.66374524]
[1750128930734,13.66374524,153.32,153.25,13.66374524]
[1750128931030,13.66374524,153.3,153.26,13.66374524]
[1750128931436,54.64964886,153.38,153.28,13.66374524]
[1750128931437,18.64964886,153.38,153.28,13.66374524]
[1750128931637,18.64964886,153.38,153.24,22.83952189]
[1750128931638,13.66374524,153.33,153.29,13.66374524]
[1750128931817,6.52017995,153.37,153.29,6.52358275]
[1750128932136,6.52017995,153.37,153.29,20.18732799]
[1750128932305,6.52017995,153.37,153.29,6.52358275]
[1750128932505,13.66374524,153.33,153.29,6.52358275]
[1750128932705,25.45415195,153.37,153.24,6.5257113]
[1750128932935,0.42648471,153.36,153.25,13.66374524]
[1750128933138,13.66374524,153.35,153.31,13.66374524]
[1750128933326,13.66374524,153.33,153.27,26.0]
[1750128933517,13.66374524,153.32,153.24,22.83998955]
[1750128933718,13.66374524,153.33,153.24,22.83998955]
[1750128933914,6.51950715,153.39,153.29,6.52358275]
[1750128934127,13.66374524,153.34,153.29,20.18732799]
[1750128934327,13.66374524,153.34,153.29,6.52358275]
[1750128934736,13.66374524,153.33,153.29,6.52358275]
[1750128934929,13.66374524,153.32,153.29,6.52358275]
[1750128935615,13.66374524,153.31,153.27,6.524434]
[1750128935828,13.66374524,153.31,153.23,16.31477295]
[1750128936030,13.66374524,153.28,153.23,20.18988241]
[1750128936228,13.66374524,153.28,153.23,6.52613717]
[1750128936443,13.66374524,153.31,153.26,13.66374524]
[1750128936616,13.66374524,153.3,153.23,22.84148011]
[1750128936815,13.66374524,153.28,153.23,6.52613717]
[1750128937109,13.66374524,153.27,153.23,6.52613717]
[1750128937323,13.66374524,153.28,153.23,20.18988241]
[1750128937715,13.66374524,153.25,153.22,6.52650829]
[1750128937923,13.66374524,153.24,153.2,6.52741514]
[1750128938116,6.52358275,153.29,153.2,6.52741514]
[1750128938318,13.66374524,153.24,153.2,6.52741514]
[1750128938623,6.52358275,153.29,153.2,6.52741514]
[1750128938624,13.66374524,153.23,153.2,6.52741514]
[1750128938834,13.66374524,153.21,153.16,20.19246414]
[1750128939033,13.66374524,153.22,153.16,6.5287189]
[1750128939340,13.66374524,153.22,153.18,13.66374524]
[1750128939549,10.24,153.25,153.18,13.66374524]
[1750128939849,13.66374524,153.21,153.16,20.19246414]
[1750128940144,13.66374524,153.2,153.16,6.5287189]
[1750128940320,13.66374524,153.17,153.12,23.43932678]